fUSD/lending_fUSD_20260502
["ID","MTS","AMOUNT","RATE_DAILY","PERIOD"]
[421438008,1777653041000,-500.0,8.336e-05,2]
[421438010,1777653041000,-500.0,8.336e-05,2]
[421438009,1777653041000,-500.0,8.336e-05,2]
[421438012,1777653041000,-500.0,8.336e-05,2]
[421438011,1777653041000,-500.0,8.336e-05,2]
[421438014,1777653041000,-500.0,8.336e-05,2]
[421438013,1777653041000,-500.0,8.336e-05,2]
[421438016,1777653041000,-500.0,8.336e-05,2]
[421438007,1777653041000,-500.0,8.336e-05,2]
[421437998,1777653041000,-2015.0912265,8.237e-05,2]
[421438052,1777653041000,-2500.0,9.114e-05,2]
[421438060,1777653041000,-2613.76,9.322e-05,2]
[421438113,1777653041000,-1117.0,0.00010109,2]
[421438103,1777653041000,-151.0,0.0001,2]
[421438117,1777653041000,-77807.08,0.00010217,2]
[421438116,1777653041000,-2535.61,0.00010146,2]
[421438105,1777653041000,-151.0,0.0001,2]
[421438134,1777653041000,-1117.0,0.00010614,2]
[421438132,1777653041000,-307.72,0.00010503,2]
[421438122,1777653041000,-578.20924308,0.00010323,2]
[421438101,1777653041000,-151.0,0.0001,2]
[421438136,1777653041000,-150.0,0.00010796,2]
[421438138,1777653041000,-1267.0,0.00010796,2]
[421438126,1777653041000,-174.61919141,0.00010323,2]
[421438124,1777653041000,-721.12765535,0.00010323,2]
[421438140,1777653041000,-1222.658,0.00010796,2]
[421438142,1777653041000,-1049.0,0.00010796,2]
[421438130,1777653041000,-188.97,0.00010411,2]
[421438144,1777653041000,-1350.0,0.00010796,2]
[421438053,1777653041000,-4264.49,9.168e-05,2]
[421438120,1777653041000,-500.0,0.00010273,2]
[421438096,1777653041000,-151.0,0.0001,2]
[421438128,1777653041000,-500.0,0.00010407,2]
[421438111,1777653041000,-433.0,0.00010085,2]
[421438099,1777653041000,-151.0,0.0001,2]
[421438064,1777653041000,-200.0,9.359e-05,2]
[421438062,1777653041000,-307.72,9.336e-05,2]
[421438067,1777653041000,-195.69,9.473e-05,2]
[421438069,1777653041000,-150.0,9.565e-05,2]
[421438073,1777653041000,-150.0,9.565e-05,2]
[421438077,1777653041000,-2613.76,9.58e-05,2]
[421438075,1777653041000,-293.9011604,9.565e-05,2]
[421438081,1777653041000,-2000.0,9.775e-05,2]
[421438079,1777653041000,-1219.47153346,9.604e-05,2]
[421438056,1777653041000,-255.0,9.168e-05,2]
[421438109,1777653041000,-151.0,0.0001,2]
[421438071,1777653041000,-150.0,9.565e-05,2]
[421438087,1777653041000,-151.0,0.0001,2]
[421438085,1777653041000,-390.0,9.966e-05,2]
[421438089,1777653041000,-151.0,0.0001,2]
[421438092,1777653041000,-151.0,0.0001,2]
[421438094,1777653041000,-151.0,0.0001,2]
[421438107,1777653041000,-151.0,0.0001,2]
[421438083,1777653041000,-2613.76,9.839e-05,2]
[421438204,1777653042000,-500.0,0.00011606,2]
[421438207,1777653042000,-500.0,0.00011606,2]
[421438197,1777653042000,-500.0,0.00011606,2]
[421438190,1777653042000,-500.0,0.00011606,2]
[421438201,1777653042000,-500.0,0.00011606,2]
[421438199,1777653042000,-500.0,0.00011606,2]
[421438209,1777653042000,-500.0,0.00011606,2]
[421438203,1777653042000,-500.0,0.00011606,2]
[421438211,1777653042000,-500.0,0.00011606,2]
[421438229,1777653042000,-1000.0,0.000117,2]
[421438217,1777653042000,-500.0,0.00011606,2]
[421438213,1777653042000,-500.0,0.00011606,2]
[421438219,1777653042000,-500.0,0.00011606,2]
[421438232,1777653042000,-2869.33950831,0.0001176,2]
[421438236,1777653042000,-375.0,0.00011833,2]
[421438234,1777653042000,-181.0,0.00011784,2]
[421438238,1777653042000,-375.0,0.0001188,2]
[421438240,1777653042000,-200.0,0.00011896,2]
[421438215,1777653042000,-500.0,0.00011606,2]
[421438175,1777653042000,-449.85,0.00011357,2]
[421438161,1777653042000,-4039.74,0.00011,2]
[421438177,1777653042000,-449.85,0.00011378,2]
[421438157,1777653042000,-527.89,0.00011,2]
[421438242,1777653042000,-250.0,0.00011899,2]
[421438146,1777653042000,-181.08010149,0.00010871,2]
[421438149,1777653042000,-500.0,0.00010959,2]
[421438153,1777653042000,-2000.0,0.00010997,2]
[421438165,1777653042000,-166.66,0.00011068,2]
[421438163,1777653042000,-1340.2,0.00011008,2]
[421438159,1777653042000,-4039.74,0.00011,2]
[421438150,1777653042000,-166.66,0.00010959,2]
[421438192,1777653042000,-500.0,0.00011606,2]
[421438155,1777653042000,-527.89,0.00011,2]
[421438169,1777653042000,-166.66,0.00011178,2]
[421438186,1777653042000,-187.78006525,0.00011419,2]
[421438182,1777653042000,-449.85,0.00011398,2]
[421438179,1777653042000,-166.66,0.00011397,2]
[421438171,1777653042000,-166.66,0.00011288,2]
[421438188,1777653042000,-166.66,0.00011507,2]
[421438184,1777653042000,-346948.30408406,0.000114,2]
[421438173,1777653042000,-449.85,0.00011317,2]
[421438195,1777653042000,-500.0,0.00011606,2]
[421438167,1777653042000,-153.0,0.00011166,5]
[421438223,1777653042000,-500.0,0.00011606,2]
[421438246,1777653042000,-801225.9344,0.000119,2]
[421438225,1777653042000,-330.79009424,0.00011606,2]
[421438291,1777653042000,-161.0,0.0001199,2]
[421438295,1777653042000,-199.35369797,0.00012,2]
[421438293,1777653042000,-300.0,0.00011999,2]
[421438297,1777653042000,-469588.7886672,0.00012,2]
[421438300,1777653042000,-5115.00000002,0.00012,2]
[421438301,1777653042000,-11890.46956227,0.00012,2]
[421438302,1777653042000,-15267.96972516,0.00012,2]
[421438303,1777653042000,-21322.55618865,0.00012,2]
[421438304,1777653042000,-48993.48432967,0.00012,2]
[421438305,1777653042000,-829.67010334,0.00012,2]
[421438308,1777653042000,-270774.69048579,0.00012,2]
[421438309,1777653042000,-1602.4850249,0.00012,2]
[421438307,1777653042000,-542.46609112,0.00012,2]
[421438306,1777653042000,-380.52932165,0.00012,2]
[421438310,1777653042000,-7777.8752529,0.00012,2]
[421438221,1777653042000,-500.0,0.00011606,2]
[421438314,1777653042000,-357.38811542,0.00012,2]
[421438313,1777653042000,-669.59097198,0.00012,2]
[421438312,1777653042000,-1141.04999999,0.00012,2]
[421438289,1777653042000,-2000.0,0.0001197,2]
[421438287,1777653042000,-194.72792766,0.00011967,2]
[421438311,1777653042000,-491.80295186,0.00012,2]
[421438283,1777653042000,-7855.9782019,0.00011948,2]
[421438227,1777653042000,-307.72,0.0001167,2]
[421438244,1777653042000,-572.38169533,0.000119,2]
[421438248,1777653042000,-172.328232,0.000119,2]
[421438253,1777653042000,-172.328232,0.000119,2]
[421438255,1777653042000,-172.328232,0.000119,2]
[421438258,1777653042000,-187.271861,0.000119,2]
[421438260,1777653042000,-187.271861,0.000119,2]
[421438285,1777653042000,-375.0,0.00011954,2]
[421438261,1777653042000,-187.271861,0.000119,2]
[421438262,1777653042000,-187.271861,0.000119,2]
[421438251,1777653042000,-172.328232,0.000119,2]
[421438268,1777653042000,-2886.61733549,0.000119,2]
[421438266,1777653042000,-1050.84952312,0.000119,2]
[421438271,1777653042000,-503.0,0.00011918,2]
[421438279,1777653042000,-250.0,0.00011945,2]
[421438275,1777653042000,-375.0,0.00011921,2]
[421438273,1777653042000,-2000.0,0.0001192,2]
[421438281,1777653042000,-68702.7463666,0.00011948,2]
[421438277,1777653042000,-250.0,0.00011945,2]
[421438280,1777653042000,-2780.6993057,0.00011948,2]
[421438264,1777653042000,-416.8812947,0.000119,2]
[421438327,1777653043000,-120979.63905113,0.00012,2]
[421438326,1777653043000,-623.0,0.00010761,2]
[421438336,1777653046000,-1033.24329246,0.0001176,2]
[421438335,1777653046000,-879.64971308,0.0001176,2]
[421438337,1777653046000,-302.41157251,0.00012,2]
[421438338,1777653046000,-4875.75005193,0.00012,2]
[421438339,1777653046000,-688.59851701,0.00012,2]
[421438342,1777653046000,-553.523,0.00012,2]
[421438341,1777653046000,-1141.6,0.00012,2]
[421438343,1777653046000,-126.85238712,0.00012,2]
[421438340,1777653046000,-2063.59845706,0.00012,2]
[421438360,1777653104000,-5000.01,8.237e-05,2]
[421438361,1777653130000,-10000.01,8.237e-05,2]
[421438365,1777653452000,-10000.01,8.237e-05,2]
[421438366,1777653453000,-10000.01,8.237e-05,2]
[421438367,1777653455000,-10000.01,8.237e-05,2]
[421438368,1777653456000,-10000.01,8.237e-05,2]
[421438370,1777653457000,-9850.01,8.237e-05,2]
[421438369,1777653457000,-150.0,8.236e-05,2]
[421438371,1777653458000,-500.0,8.236e-05,2]
[421438375,1777653458000,-500.0,8.236e-05,2]
[421438373,1777653458000,-500.0,8.236e-05,2]
[421438374,1777653458000,-500.0,8.236e-05,2]
[421438379,1777653458000,-500.0,8.236e-05,2]
[421438377,1777653458000,-500.0,8.236e-05,2]
[421438376,1777653458000,-500.0,8.236e-05,2]
[421438380,1777653458000,-5500.001,8.237e-05,2]
[421438378,1777653458000,-500.009,8.236e-05,2]
[421438372,1777653458000,-500.0,8.236e-05,2]
[421438381,1777653459000,-10000.01,8.237e-05,2]
[421438382,1777653460000,-10000.01,8.237e-05,2]
[421438383,1777653461000,-10000.01,8.237e-05,2]
[421438384,1777653462000,-10000.01,8.237e-05,2]
[421438389,1777653463000,-500.0,8.236e-05,2]
[421438385,1777653463000,-500.0,8.236e-05,2]
[421438386,1777653463000,-500.0,8.236e-05,2]
[421438387,1777653463000,-636.08744159,8.236e-05,2]
[421438394,1777653463000,-10000.01,8.237e-05,2]
[421438391,1777653463000,-500.0,8.236e-05,2]
[421438393,1777653463000,-10000.01,8.237e-05,2]
[421438392,1777653463000,-6834.8731695,8.237e-05,2]
[421438390,1777653463000,-170.76610594,8.236e-05,2]
[421438388,1777653463000,-358.28328297,8.236e-05,2]
[421438395,1777653464000,-300.0,8.235e-05,2]
[421438396,1777653464000,-1200.0,8.235e-05,2]
[421438397,1777653464000,-8500.01,8.237e-05,2]
[421438398,1777653465000,-10000.01,8.237e-05,2]
[421438399,1777653467000,-10000.01,8.237e-05,2]
[421438403,1777653467000,1159.62,5.713e-05,2]
[421438402,1777653467000,1159.62,5.441e-05,2]
[421438400,1777653467000,-10000.01,8.237e-05,2]
[421438406,1777653467000,1159.62,6.529e-05,2]
[421438405,1777653467000,1159.62,6.257e-05,2]
[421438407,1777653467000,1159.62,6.801e-05,2]
[421438404,1777653467000,1159.62,5.985e-05,2]
[421438401,1777653467000,1159.62,5.169e-05,2]
[421438412,1777653468000,1159.62,8.161e-05,2]
[421438410,1777653468000,1159.62,7.617e-05,2]
[421438411,1777653468000,1159.62,7.889e-05,2]
[421438409,1777653468000,1159.62,7.345e-05,2]
[421438408,1777653468000,1159.62,7.073e-05,2]
[421438414,1777653469000,2862.162476,7.945e-05,2]
[421438413,1777653469000,-10000.01,8.237e-05,2]
[421438416,1777653469000,-10000.01,8.237e-05,2]
[421438418,1777653471000,-10000.01,8.237e-05,2]
[421438417,1777653471000,-10000.01,8.237e-05,2]
[421438419,1777653472000,-10000.01,8.237e-05,2]
[421438420,1777653473000,-10000.01,8.237e-05,2]
[421438422,1777653583000,-10000.01,8.237e-05,2]
[421438429,1777653788000,-10000.01,8.237e-05,2]
[421438430,1777653789000,-10000.01,8.237e-05,2]
[421438431,1777653790000,-10000.01,8.237e-05,2]
[421438432,1777653791000,-10000.01,8.237e-05,2]
[421438433,1777653792000,-10000.01,8.237e-05,2]
[421438435,1777653793000,-10000.01,8.237e-05,2]
[421438434,1777653793000,-10000.01,8.237e-05,2]
[421438437,1777653794000,-10000.01,8.237e-05,2]
[421438436,1777653794000,-10000.01,8.237e-05,2]
[421438438,1777653795000,-10000.01,8.237e-05,2]
[421438439,1777653796000,-10000.01,8.237e-05,2]
[421438440,1777653798000,-10000.01,8.237e-05,2]
[421438441,1777653799000,-10000.01,8.237e-05,2]
[421438442,1777653799000,-10000.01,8.237e-05,2]
[421438443,1777653800000,-10000.01,8.237e-05,2]
[421438447,1777653801000,-10000.01,8.237e-05,2]
[421438446,1777653801000,-10000.01,8.237e-05,2]
[421438445,1777653801000,256.53896547,8.072e-05,2]
[421438444,1777653801000,534.963,8.072e-05,2]
[421438448,1777653802000,-10000.01,8.237e-05,2]
[421438449,1777653803000,-10000.01,8.237e-05,2]
[421438451,1777653804000,-10000.01,8.237e-05,2]
[421438450,1777653804000,-10000.01,8.237e-05,2]
[421438452,1777653805000,-10000.01,8.237e-05,2]
[421438454,1777654210000,-302.5860834,8.236e-05,2]
[421438455,1777654210000,-600.79829808,8.236e-05,2]
[421438456,1777654210000,-500.0,8.236e-05,2]
[421438460,1777654210000,-639.58220252,8.236e-05,2]
[421438458,1777654210000,-500.0,8.236e-05,2]
[421438462,1777654210000,-6298.51988825,8.237e-05,2]
[421438457,1777654210000,-237.34404907,8.236e-05,2]
[421438461,1777654210000,-421.17947868,8.236e-05,2]
[421438459,1777654210000,-500.0,8.236e-05,2]
[421438463,1777654212000,-472.82736426,8.236e-05,2]
[421438464,1777654212000,-500.0,8.236e-05,2]
[421438465,1777654212000,-596.12893291,8.236e-05,2]
[421438470,1777654212000,284.5066,8.137e-05,2]
[421438467,1777654212000,-500.0,8.236e-05,2]
[421438468,1777654212000,-285.84988368,8.236e-05,2]
[421438469,1777654212000,-7145.20381915,8.237e-05,2]
[421438466,1777654212000,-500.0,8.236e-05,2]
[421438472,1777654213000,-300.0,8.235e-05,2]
[421438473,1777654213000,-9700.01,8.237e-05,2]
[421438471,1777654213000,-10000.01,8.237e-05,2]
[421438475,1777654214000,500.0,8.137e-05,2]
[421438474,1777654214000,-10000.01,8.237e-05,2]
[421438476,1777654215000,-10000.01,8.237e-05,2]
[421438479,1777654216000,-10000.01,8.237e-05,2]
[421438478,1777654216000,3150.36,0.0003,120]
[421438477,1777654216000,-10000.01,8.237e-05,2]
[421438481,1777654218000,-300.0,8.235e-05,2]
[421438480,1777654218000,180.46,7.057e-05,2]
[421438485,1777654218000,-8050.01,8.237e-05,2]
[421438483,1777654218000,-150.0,8.235e-05,2]
[421438484,1777654218000,-300.0,8.235e-05,2]
[421438482,1777654218000,-1200.0,8.235e-05,2]
[421438486,1777654218000,4158.2834,8.137e-05,2]
[421438488,1777654219000,-10000.01,8.237e-05,2]
[421438487,1777654219000,5114.0736,8.137e-05,2]
[421438490,1777654220000,-10000.01,8.237e-05,2]
[421438489,1777654220000,-905.65713472,8.237e-05,2]
[421438492,1777654221000,-10000.01,8.237e-05,2]
[421438491,1777654221000,-10000.01,8.237e-05,2]
[421438493,1777654222000,-10000.01,8.237e-05,2]
[421438494,1777654223000,-10000.01,8.237e-05,2]
[421438497,1777654224000,1167.5781961,7.057e-05,2]
[421438496,1777654224000,-302.5860834,8.237e-05,2]
[421438495,1777654224000,-302.5860834,8.237e-05,2]
[421438498,1777654225000,-302.5860834,8.237e-05,2]
[421438501,1777654226000,-302.5860834,8.237e-05,2]
[421438499,1777654226000,-524.64104809,8.237e-05,2]
[421438500,1777654226000,3573.119363,8.178e-05,2]
[421438503,1777654226000,208656.5652587,8.137e-05,2]
[421438502,1777654226000,506996.1381413,8.137e-05,2]
[421438504,1777654227000,-302.5860834,8.237e-05,2]
[421438506,1777654228000,-176.9239166,8.237e-05,2]
[421438505,1777654228000,5000.0,0.00030136,120]
[421438530,1777654232000,-159.84,9.473e-05,2]
[421438528,1777654232000,-1000.0,9.099e-05,2]
[421438525,1777654232000,-1200.0,9.058e-05,2]
[421438522,1777654232000,-1159.62,8.977e-05,2]
[421438517,1777654232000,-150.0,8.896e-05,2]
[421438531,1777654232000,-2000.0,9.485e-05,2]
[421438516,1777654232000,-200.0,8.862e-05,2]
[421438510,1777654232000,-500.0,8.723e-05,2]
[421438511,1777654232000,-1647.83,8.745e-05,2]
[421438509,1777654232000,-1159.62,8.705e-05,2]
[421438508,1777654232000,-1159.62,8.433e-05,2]
[421438518,1777654232000,-4426.87,8.941e-05,2]
[421438513,1777654232000,-500.0,8.768e-05,2]
[421438532,1777654232000,-150.0,9.518e-05,2]
[421438536,1777654232000,-1159.62,9.521e-05,2]
[421438529,1777654232000,-1159.62,9.249e-05,2]
[421438546,1777654232000,-1159.62,0.00010065,2]
[421438545,1777654232000,-150.0,0.00010047,2]
[421438543,1777654232000,-800.05433727,0.0001,2]
[421438538,1777654232000,-150.0,9.753e-05,2]
[421438542,1777654232000,-150.0,9.988e-05,2]
[421438544,1777654232000,-536.7932772,0.0001,2]
[421438539,1777654232000,-150.0,9.782e-05,2]
[421438540,1777654232000,-1159.62,9.793e-05,2]
[421438533,1777654232000,-150.0,9.518e-05,2]
[421438535,1777654232000,-150.0,9.518e-05,2]
[421438537,1777654232000,-150.0,9.635e-05,2]
[421438534,1777654232000,-150.0,9.518e-05,2]
[421438541,1777654232000,-150.0,9.87e-05,2]
[421438553,1777654233000,-188.98,0.00010411,2]
[421438547,1777654233000,-150.0,0.00010105,2]
[421438548,1777654233000,-446.74860556,0.00010109,2]
[421438550,1777654233000,-150.0,0.00010311,2]
[421438551,1777654233000,-1159.62,0.00010337,2]
[421438552,1777654233000,-150.0,0.0001034,2]
[421438549,1777654233000,-150.0,0.00010223,2]
[421438554,1777654233000,-150.0,0.00010458,2]
[421438558,1777654233000,-150.0,0.00010575,2]
[421438556,1777654233000,-150.0,0.00010575,2]
[421438557,1777654233000,-150.0,0.00010575,2]
[421438559,1777654233000,-951.56857997,0.000106,2]
[421438561,1777654233000,161.18,5.221e-05,2]
[421438560,1777654233000,161.18,4.35e-05,2]
[421438562,1777654233000,161.18,6.091e-05,2]
[421438563,1777654233000,161.18,6.961e-05,2]
[421438564,1777654233000,161.18,7.831e-05,2]
[421438555,1777654233000,-13573.99,0.00010475,2]
[421438568,1777654237000,-3904.63108329,9.67e-05,2]
[421438567,1777654237000,-6095.35891671,9.67e-05,2]
[421438566,1777654237000,-2218.88,9.67e-05,2]
[421438570,1777654237000,-999.99,9.67e-05,2]
[421438569,1777654237000,-299.99,9.67e-05,2]
[421438571,1777654237000,-3149.14891671,0.000106,2]
[421438565,1777654237000,-161.18,8.701e-05,2]
[421438573,1777654237000,-427.65,0.000106,2]
[421438574,1777654237000,-400.0,0.000106,2]
[421438577,1777654237000,-255.51004428,0.000106,2]
[421438579,1777654237000,-76207.56606965,0.000106,2]
[421438581,1777654237000,-204.5796,0.000106,2]
[421438572,1777654237000,-5402.76608939,0.000106,2]
[421438583,1777654237000,-559.47399073,0.00010614,2]
[421438585,1777654238000,-2250.65812901,0.00010619,2]
[421438587,1777654238000,-17069.43040224,0.000107,2]
[421438586,1777654238000,-2000.0,0.0001067,2]
[421438630,1777654238000,-364.3708725,0.000107,2]
[421438624,1777654238000,-269.475,0.000107,2]
[421438627,1777654238000,-291.44699582,0.000107,2]
[421438588,1777654238000,-533.19435917,0.000107,2]
[421438652,1777654239000,-3476.46400164,0.000107,2]
[421438645,1777654239000,-380.52932165,0.000107,2]
[421438642,1777654239000,-829.67010334,0.000107,2]
[421438647,1777654239000,-24286.8560527,0.000107,2]
[421438640,1777654239000,-48993.48432967,0.000107,2]
[421438638,1777654239000,-36590.52591381,0.000107,2]
[421438870,1777654240000,-55690.79748931,0.000107,2]
[421438882,1777654240000,-58.29344978,0.000107,2]
[421438872,1777654240000,-45791.45797951,0.000107,2]
[421438886,1777654240000,-272.5845,0.000107,2]
[421438890,1777654240000,-289.5,0.000107,2]
[421438884,1777654240000,-268.76892128,0.000107,2]
[421438962,1777654241000,-1836.37474076,0.000107,2]
[421438896,1777654241000,-800.30798175,0.000107,2]
[421438898,1777654241000,-2018.596905,0.000107,2]
[421439284,1777654243000,-150.0,0.00010989,2]
[421439295,1777654243000,-7290.73130748,0.00011099,2]
[421439297,1777654243000,-7290.73130748,0.00011099,2]
[421439293,1777654243000,-7290.73130748,0.00011099,2]
[421439300,1777654243000,-7290.73130748,0.00011099,2]
[421439309,1777654243000,-416.0,0.00011137,2]
[421439289,1777654243000,-7290.73130755,0.00011099,2]
[421439304,1777654243000,-7290.73130748,0.00011099,2]
[421439271,1777654243000,-191719.24542754,0.000107,2]
[421439287,1777654243000,-166.66,0.00011068,2]
[421439282,1777654243000,-166.66,0.00010959,2]
[421439277,1777654243000,-578.20924308,0.00010753,2]
[421439280,1777654243000,-500.0,0.00010959,2]
[421439275,1777654243000,-721.12765535,0.00010753,2]
[421439273,1777654243000,-159.83,0.00010708,2]
[421439264,1777654243000,-661.03999474,0.000107,2]
[421439262,1777654243000,-478.77755585,0.000107,2]
[421439291,1777654243000,-7290.73130748,0.00011099,2]
[421439307,1777654243000,-1124.0,0.00011137,2]
[421439302,1777654243000,-7290.73130748,0.00011099,2]
[421439320,1777654243000,-250.0,0.00011137,2]
[421439311,1777654243000,-150.17,0.00011137,2]
[421439342,1777654243000,-150.0,0.00011332,2]
[421439336,1777654243000,-166.66,0.00011288,2]
[421439334,1777654243000,-424.0,0.00011282,2]
[421439347,1777654243000,-150.0,0.00011332,2]
[421439341,1777654243000,-424.0,0.00011323,2]
[421439349,1777654243000,-150.0,0.00011332,2]
[421439353,1777654243000,-424.0,0.00011343,2]
[421439351,1777654243000,-159.04228364,0.00011332,2]
[421439338,1777654243000,-424.0,0.00011306,2]
[421439332,1777654243000,-424.0,0.00011272,2]
[421439345,1777654243000,-150.0,0.00011332,2]
[421439318,1777654243000,-150.0,0.00011137,2]
[421439322,1777654243000,-1664.0,0.00011137,2]
[421439325,1777654243000,-166.66,0.00011178,2]
[421439313,1777654243000,-240.344,0.00011137,2]
[421439316,1777654243000,-851.0,0.00011137,2]
[421439327,1777654243000,-290.83362062,0.00011259,2]
[421439329,1777654243000,-424.0,0.00011262,2]
[421439375,1777654244000,-424.0,0.00011526,2]
[421439394,1777654244000,-200.0,0.00011898,2]
[421439391,1777654244000,-2000.0,0.00011856,2]
[421439387,1777654244000,-307.0,0.000118,2]
[421439389,1777654244000,-2641.0,0.000118,2]
[421439377,1777654244000,-2000.0,0.000116,2]
[421439369,1777654244000,-424.0,0.00011461,2]
[421439373,1777654244000,-10884.1587482,0.00011517,2]
[421439372,1777654244000,-424.0,0.00011513,2]
[421439356,1777654244000,-424.0,0.00011351,2]
[421439365,1777654244000,-166.66,0.00011397,2]
[421439371,1777654244000,-166.66,0.00011507,2]
[421439368,1777654244000,-424.0,0.00011413,2]
[421439374,1777654244000,-424.0,0.00011525,2]
[421439360,1777654244000,-424.0,0.00011379,2]
[421439362,1777654244000,-424.0,0.00011397,2]
[421439370,1777654244000,-7290.73130748,0.00011482,2]
[421439358,1777654244000,-424.0,0.00011377,2]
[421439367,1777654244000,-424.0,0.00011402,2]
[421439396,1777654244000,-7290.73130748,0.000119,2]
[421439399,1777654244000,-277.92086314,0.000119,2]
[421439385,1777654244000,-313.0,0.000118,2]
[421439379,1777654244000,-150.0,0.00011726,2]
[421439431,1777654244000,-384054.46742108,0.00012,2]
[421439435,1777654244000,-6536.39849417,0.00012,2]
[421439442,1777654244000,-3623.64369429,0.00012,2]
[421439427,1777654244000,-161.0,0.0001199,2]
[421439429,1777654244000,-155.0,0.00012,5]
[421439409,1777654244000,-478.42,0.00011951,2]
[421439411,1777654244000,-393.02,0.00011951,2]
[421439413,1777654244000,-572.71,0.00011951,2]
[421439423,1777654244000,-592.25,0.00011953,2]
[421439383,1777654244000,-1791.81643452,0.0001176,2]
[421439415,1777654244000,-151.81,0.00011953,2]
[421439425,1777654244000,-358.0,0.00011975,2]
[421439407,1777654244000,-190.82,0.00011951,2]
[421439421,1777654244000,-481.62,0.00011953,2]
[421439405,1777654244000,-570.77,0.00011951,2]
[421439381,1777654244000,-230.47614937,0.00011726,2]
[421439417,1777654244000,-184.92,0.00011953,2]
[421439419,1777654244000,-568.52,0.00011953,2]
[421439401,1777654244000,-250.0,0.00011945,2]
[421439403,1777654244000,-400.0,0.00011945,2]
[421439749,1777654246000,-1194.54428968,0.0001176,2]
[421439751,1777654246000,-243391.10928148,0.00012,2]
[421439716,1777654246000,-721.74584029,0.00012,2]
[421439701,1777654246000,-5271.1818746,0.00012,2]
[421439699,1777654246000,-194.093,0.00011137,2]
[421440754,1777654358000,10000.01,8.137e-05,2]
[421440755,1777654358000,10000.01,8.137e-05,2]
[421440756,1777654358000,10000.01,8.137e-05,2]
[421440757,1777654358000,10000.01,8.137e-05,2]
[421440758,1777654358000,10000.01,8.137e-05,2]
[421440761,1777654358000,10000.01,8.137e-05,2]
[421440762,1777654358000,10000.01,8.137e-05,2]
[421440760,1777654358000,10000.01,8.137e-05,2]
[421440763,1777654358000,5000.01,8.137e-05,2]
[421440764,1777654358000,555417.51804954,8.137e-05,2]
[421440765,1777654358000,1780.662,8.137e-05,2]
[421440759,1777654358000,10000.01,8.137e-05,2]
[421440766,1777654358000,300.0,8.137e-05,2]
[421440769,1777654386000,-4194.11,8.137e-05,2]
[421440770,1777654414000,-5000.01,8.137e-05,2]
[421440771,1777654414000,152.0,9.188e-05,7]
[421440778,1777654741000,152.0,9.202e-05,7]
[421440777,1777654741000,152.0,9.202e-05,7]
[421440776,1777654741000,152.0,9.193e-05,7]
[421440775,1777654741000,152.0,9.193e-05,7]
[421440780,1777654905000,815.28,4.514e-05,2]
[421440781,1777654906000,815.28,4.751e-05,2]
[421440783,1777654906000,815.28,5.226e-05,2]
[421440782,1777654906000,815.28,4.989e-05,2]
[421440786,1777654907000,815.28,5.939e-05,2]
[421440785,1777654907000,815.28,5.701e-05,2]
[421440784,1777654907000,815.28,5.464e-05,2]
[421440791,1777654908000,815.28,7.127e-05,2]
[421440790,1777654908000,815.28,6.889e-05,2]
[421440789,1777654908000,815.28,6.652e-05,2]
[421440787,1777654908000,815.28,6.177e-05,2]
[421440788,1777654908000,815.28,6.414e-05,2]
[421440793,1777654909000,815.28,7.602e-05,2]
[421440792,1777654909000,815.28,7.364e-05,2]
[421440794,1777654911000,815.28,7.84e-05,2]
[421440795,1777654912000,815.28,8.077e-05,2]
[421440796,1777654923000,152.0,9.062e-05,7]
[421440801,1777655025000,-256.0,8.134e-05,2]
[421440802,1777655025000,-194.33718995,8.135e-05,2]